fUSD/lending_fUSD_20240720
["ID","MTS","AMOUNT","RATE_DAILY","PERIOD"]
[332692081,1721452284123,-500.0,0.0003315,14]
[332692082,1721452284132,-500.0,0.0003315,14]
[332692083,1721452284141,-522.24,0.0003315,14]
[332692084,1721452284150,-1611.07,0.0003315,14]
[332692085,1721452284158,-500.0,0.0003315,14]
[332692086,1721452284167,-4399.51,0.0003315,14]
[332692087,1721452284177,-500.0,0.0003315,14]
[332692088,1721452284186,-500.0,0.0003315,14]
[332692089,1721452284195,-2764.89,0.0003315,14]
[332692090,1721452284204,-500.0,0.0003315,14]
[332692091,1721452284213,-758.97,0.0003315,14]
[332692092,1721452284222,-501.1972439,0.0003315,14]
[332692093,1721452284231,-511.33569646,0.0003315,14]
[332692094,1721452284240,-1253.47,0.0003315,14]
[332692095,1721452284249,-2010.33,0.0003315,14]
[332692096,1721452284258,-4422.6,0.0003315,14]
[332692097,1721452284267,-507.90841669,0.0003315,14]
[332692098,1721452284276,-500.0,0.0003315,14]
[332692099,1721452284285,-439.03667817,0.0003315,14]
[332692100,1721452284294,-500.0,0.0003315,14]
[332692101,1721452284303,-500.0,0.0003315,14]
[332692102,1721452284312,-782.08,0.0003315,14]
[332692103,1721452284322,-500.0,0.0003315,14]
[332692104,1721452284331,-500.0,0.0003315,14]
[332692105,1721452284341,-508.12821611,0.0003315,14]
[332692106,1721452284350,-509.3494581,0.0003315,14]
[332692107,1721452284360,-3857.12,0.0003315,14]
[332692108,1721452284368,-500.0,0.0003315,14]
[332692109,1721452284378,-670.79,0.0003315,14]
[332692110,1721452284387,-500.0,0.0003315,14]
[332692111,1721452284396,-500.0,0.0003315,14]
[332692112,1721452284405,-738.12,0.0003315,14]
[332692113,1721452284415,-500.0,0.0003315,14]
[332692114,1721452284424,-509.79375699,0.0003315,14]
[332692115,1721452284433,-386.494389,0.0003315,14]
[332692116,1721452284442,-500.0,0.0003315,14]
[332692117,1721452284451,-511.05,0.0003315,14]
[332692118,1721452284460,-500.0,0.0003315,14]
[332692119,1721452284470,-2474.15,0.0003315,14]
[332692120,1721452284479,-2276.68,0.0003315,14]
[332692121,1721452284488,-1039.92,0.0003315,2]
[332692122,1721452284497,-500.0,0.0003315,14]
[332692123,1721452284506,-500.0,0.0003315,14]
[332692124,1721452284515,-500.0,0.0003315,14]
[332692125,1721452284524,-773.67,0.0003315,14]
[332692126,1721452284533,-2869.88,0.0003315,14]
[332692127,1721452284543,-935.74,0.0003315,14]
[332692128,1721452284552,-1504.33,0.0003315,14]
[332692129,1721452284562,-2544.71,0.0003315,14]
[332692130,1721452284571,-500.0,0.0003315,14]
[332692131,1721452284580,-1103.94404831,0.0003315,2]
[332692132,1721452284589,-643.79,0.0003315,14]
[332692133,1721452284602,-500.0,0.0003315,14]
[332692134,1721452284611,-1507.73,0.0003315,14]
[332692135,1721452284620,-2587.33,0.0003315,14]
[332692136,1721452284629,-1314.27,0.0003315,14]
[332692137,1721452284640,-500.0,0.0003315,14]
[332692138,1721452284650,-500.0,0.0003315,14]
[332692139,1721452284659,-500.0,0.0003315,14]
[332692140,1721452284668,-233.4,0.00033151,120]
[332692141,1721452284678,-151.66464047,0.00033166,7]
[332692142,1721452284688,-225.75,0.000332,2]
[332692143,1721452284697,-999.66,0.000332,2]
[332692144,1721452284706,-317.24,0.000332,2]
[332692145,1721452284715,-151.7227518,0.00033214,7]
[332692146,1721452284724,-3108.0,0.00033228,2]
[332692147,1721452284733,-231.082217,0.00033273,7]
[332692148,1721452284743,-231.68,0.000333,2]
[332692149,1721452284752,-977.75,0.0003331,30]
[332692150,1721452284761,-977.75,0.0003331,30]
[332692151,1721452284770,-1135.35311828,0.00033324,2]
[332692152,1721452284779,-464.66570795,0.00033324,6]
[332692153,1721452284788,-151.7227518,0.00033372,7]
[332692154,1721452284799,-153.47002916,0.00033396,7]
[332692155,1721452284808,-600.0,0.00033402,19]
[332692156,1721452284817,-604.67082506,0.00033402,19]
[332692157,1721452284827,-431.66508216,0.00033424,14]
[332692158,1721452284835,-500.0,0.00033424,14]
[332692159,1721452284848,-500.0,0.00033424,14]
[332692160,1721452284857,-500.0,0.00033424,14]
[332692161,1721452284867,-500.0,0.00033424,14]
[332692162,1721452284883,-500.0,0.00033424,14]
[332692163,1721452284892,-500.0,0.00033424,14]
[332692164,1721452284902,-1022.34,0.00033424,14]
[332692165,1721452284912,-500.0,0.00033424,14]
[332692166,1721452284922,-500.0,0.00033424,14]
[332692167,1721452284932,-500.0,0.00033424,14]
[332692168,1721452284942,-667.24,0.00033424,14]
[332692169,1721452284952,-500.0,0.00033424,14]
[332692170,1721452284962,-703.85,0.00033424,14]
[332692171,1721452284971,-500.0,0.00033424,14]
[332692172,1721452284981,-500.0,0.00033424,14]
[332692173,1721452284990,-1004.77,0.00033424,14]
[332692174,1721452285000,-500.0,0.00033424,14]
[332692175,1721452285009,-500.0,0.00033424,14]
[332692176,1721452285018,-500.0,0.00033424,14]
[332692177,1721452285028,-500.0,0.00033424,14]
[332692178,1721452285037,-500.0,0.00033424,14]
[332692179,1721452285046,-755.54,0.00033424,14]
[332692180,1721452285055,-624.11,0.00033424,14]
[332692181,1721452285065,-500.0,0.00033424,14]
[332692182,1721452285074,-500.0,0.00033424,14]
[332692183,1721452285084,-500.0,0.00033424,14]
[332692184,1721452285097,-500.0,0.00033424,14]
[332692185,1721452285107,-500.0,0.00033424,14]
[332692186,1721452285116,-500.0,0.00033424,14]
[332692187,1721452285125,-500.0,0.00033424,14]
[332692188,1721452285135,-500.0,0.00033424,14]
[332692189,1721452285145,-500.0,0.00033424,14]
[332692190,1721452285154,-587.52665684,0.00033424,14]
[332692191,1721452285163,-500.0,0.00033424,14]
[332692192,1721452285173,-500.0,0.00033424,14]
[332692193,1721452285182,-1361.11,0.00033424,14]
[332692194,1721452285192,-204.06295665,0.00033424,14]
[332692195,1721452285201,-500.0,0.00033424,14]
[332692196,1721452285211,-500.0,0.00033424,14]
[332692197,1721452285220,-500.0,0.00033424,14]
[332692198,1721452285229,-511.02256997,0.00033424,14]
[332692199,1721452285238,-500.0,0.00033424,14]
[332692200,1721452285247,-500.0,0.00033424,14]
[332692201,1721452285257,-500.0,0.00033424,14]
[332692202,1721452285266,-500.0,0.00033424,14]
[332692203,1721452285275,-516.84179678,0.00033424,14]
[332692204,1721452285285,-500.0,0.00033424,14]
[332692205,1721452285294,-500.0,0.00033424,14]
[332692206,1721452285303,-905.48,0.00033424,14]
[332692207,1721452285312,-636.07,0.00033424,14]
[332692208,1721452285321,-575.11,0.00033424,14]
[332692209,1721452285330,-500.0,0.00033424,14]
[332692210,1721452285342,-977.86,0.00033424,14]
[332692211,1721452285351,-539.28,0.00033424,14]
[332692212,1721452285360,-1018.11,0.00033424,14]
[332692213,1721452285369,-788.52,0.00033424,14]
[332692214,1721452285379,-500.0,0.00033424,14]
[332692215,1721452285388,-500.0,0.00033424,14]
[332692216,1721452285397,-500.0,0.00033424,14]
[332692217,1721452285406,-500.0,0.00033424,14]
[332692218,1721452285415,-663.27,0.00033424,14]
[332692219,1721452285425,-500.0,0.00033424,14]
[332692220,1721452285434,-500.0,0.00033424,14]
[332692221,1721452285443,-500.0,0.00033424,14]
[332692222,1721452285453,-192.80301879,0.00033424,14]
[332692223,1721452285462,-500.0,0.00033424,14]
[332692224,1721452285471,-500.0,0.00033424,14]
[332692225,1721452285480,-500.0,0.00033424,14]
[332692226,1721452285489,-510.48560598,0.00033424,14]
[332692227,1721452285498,-817.64,0.00033424,14]
[332692228,1721452285507,-500.0,0.00033424,14]
[332692229,1721452285516,-600.63,0.00033424,14]
[332692230,1721452285527,-215.795442,0.00033424,7]
[332692231,1721452285536,-215.795442,0.00033424,7]
[332692232,1721452285545,-923.07,0.00033424,14]
[332692233,1721452285554,-215.795442,0.00033424,7]
[332692234,1721452285563,-215.795442,0.00033424,7]
[332692235,1721452285572,-404.2326495,0.00033424,14]
[332692236,1721452285581,-304.28253494,0.00033424,14]
[332692237,1721452285592,-500.0,0.00033424,14]
[332692238,1721452285604,-520.79,0.00033424,14]
[332692239,1721452285613,-500.0,0.00033424,14]
[332692240,1721452285622,-500.0,0.00033424,14]
[332692241,1721452285631,-500.0,0.00033424,14]
[332692242,1721452285642,-500.0,0.00033424,14]
[332692243,1721452285651,-500.0,0.00033424,14]
[332692244,1721452285660,-500.0,0.00033424,14]
[332692245,1721452285669,-500.0,0.00033424,14]
[332692246,1721452285680,-500.0,0.00033424,14]
[332692247,1721452285690,-500.0,0.00033424,14]
[332692248,1721452285699,-500.0,0.00033424,14]
[332692249,1721452285708,-554.46,0.00033424,14]
[332692250,1721452285718,-500.0,0.00033424,14]
[332692251,1721452285727,-500.0,0.00033424,14]
[332692252,1721452285736,-500.0,0.00033424,14]
[332692253,1721452285746,-563.48,0.00033424,14]
[332692254,1721452285755,-500.0,0.00033424,14]
[332692255,1721452285764,-500.0,0.00033424,14]
[332692256,1721452285773,-500.0,0.00033424,14]
[332692257,1721452285783,-500.0,0.00033424,14]
[332692258,1721452285792,-500.0,0.00033424,14]
[332692259,1721452285802,-689.0,0.00033424,14]
[332692260,1721452285811,-500.0,0.00033424,14]
[332692261,1721452285820,-500.0,0.00033424,14]
[332692262,1721452285830,-500.0,0.00033424,14]
[332692263,1721452285839,-500.0,0.00033424,14]
[332692264,1721452285849,-500.0,0.00033424,14]
[332692265,1721452285858,-500.0,0.00033424,14]
[332692266,1721452285867,-500.0,0.00033424,14]
[332692267,1721452285877,-500.0,0.00033424,14]
[332692268,1721452285886,-500.0,0.00033424,14]
[332692269,1721452285895,-500.0,0.00033424,14]
[332692270,1721452285904,-524.16770412,0.00033424,14]
[332692271,1721452285914,-500.0,0.00033424,14]
[332692272,1721452285923,-500.0,0.00033424,14]
[332692273,1721452285933,-505.2646569,0.00033424,14]
[332692274,1721452285942,-768.0,0.00033424,14]
[332692275,1721452285952,-500.0,0.00033424,14]
[332692276,1721452285961,-824.05,0.00033424,14]
[332692277,1721452285970,-500.0,0.00033424,14]
[332692278,1721452285979,-500.0,0.00033424,14]
[332692279,1721452285988,-741.81,0.00033424,14]
[332692280,1721452285997,-500.0,0.00033424,14]
[332692281,1721452286006,-500.0,0.00033424,14]
[332692282,1721452286015,-642.24,0.00033424,14]
[332692283,1721452286024,-500.0,0.00033424,14]
[332692284,1721452286033,-500.0,0.00033424,14]
[332692285,1721452286043,-787.66,0.00033424,14]
[332692286,1721452286052,-584.73,0.00033424,14]
[332692287,1721452286061,-500.0,0.00033424,14]
[332692288,1721452286070,-500.0,0.00033424,14]
[332692289,1721452286079,-500.0,0.00033424,14]
[332692290,1721452286088,-766.73,0.00033424,14]
[332692291,1721452286098,-514.37458508,0.00033424,14]
[332692292,1721452286108,-684.63,0.00033424,14]
[332692293,1721452286117,-287.828131,0.00033424,7]
[332692294,1721452286126,-500.0,0.00033424,14]
[332692295,1721452286135,-268.4608994,0.00033424,14]
[332692296,1721452286144,-507.36,0.00033424,14]
[332692297,1721452286154,-500.0,0.00033424,14]
[332692298,1721452286163,-500.0,0.00033424,14]
[332692299,1721452286172,-500.0,0.00033424,14]
[332692300,1721452286181,-500.0,0.00033424,14]
[332692301,1721452286191,-500.0,0.00033424,14]
[332692302,1721452286200,-500.0,0.00033424,14]
[332692303,1721452286209,-500.0,0.00033424,14]
[332692304,1721452286218,-529.18350819,0.00033424,14]
[332692305,1721452286227,-500.0,0.00033424,14]
[332692306,1721452286236,-500.0,0.00033424,14]
[332692307,1721452286245,-500.0,0.00033424,14]
[332692308,1721452286255,-500.0,0.00033424,14]
[332692309,1721452286264,-500.0,0.00033424,14]
[332692310,1721452286274,-500.0,0.00033424,14]
[332692311,1721452286283,-500.0,0.00033424,14]
[332692312,1721452286292,-500.0,0.00033424,14]
[332692313,1721452286301,-500.0,0.00033424,14]
[332692314,1721452286310,-773.96,0.00033424,14]
[332692315,1721452286319,-500.0,0.00033424,14]
[332692316,1721452286328,-511.22777007,0.00033424,14]
[332692317,1721452286338,-500.0,0.00033424,14]
[332692318,1721452286348,-887.87,0.00033424,14]
[332692319,1721452286357,-500.0,0.00033424,14]
[332692320,1721452286366,-151.0,0.00033424,7]
[332692321,1721452286376,-151.0,0.00033424,7]
[332692322,1721452286385,-500.0,0.00033424,14]
[332692323,1721452286395,-500.0,0.00033424,14]
[332692324,1721452286404,-500.0,0.00033424,14]
[332692325,1721452286413,-465.41004695,0.00033424,14]
[332692326,1721452286423,-576.39,0.00033424,14]
[332692327,1721452286434,-522.33097841,0.00033424,14]
[332692328,1721452286443,-931.48,0.00033424,14]
[332692329,1721452286452,-500.0,0.00033424,14]
[332692330,1721452286640,-500.0,0.00033424,14]
[332692331,1721452286649,-151.0,0.00033424,7]
[332692332,1721452286658,-151.0,0.00033424,7]
[332692333,1721452286668,-500.0,0.00033424,14]
[332692334,1721452286678,-500.0,0.00033424,14]
[332692335,1721452286690,-545.9,0.00033424,14]
[332692336,1721452286699,-804.97,0.00033424,14]
[332692337,1721452286708,-500.0,0.00033424,14]
[332692338,1721452286717,-500.0,0.00033424,14]
[332692339,1721452286726,-2058.6,0.00033424,14]
[332692340,1721452286735,-189.18003916,0.00033424,14]
[332692341,1721452286744,-500.0,0.00033424,14]
[332692342,1721452286753,-500.0,0.00033424,14]
[332692343,1721452286763,-672.54,0.00033424,14]
[332692344,1721452286772,-1597.61,0.00033424,14]
[332692345,1721452286782,-411.29164245,0.00033424,14]
[332692346,1721452286791,-500.0,0.00033424,14]
[332692347,1721452286801,-151.0,0.00033424,7]
[332692348,1721452286810,-151.0,0.00033424,7]
[332692349,1721452286819,-500.0,0.00033424,14]
[332692350,1721452286829,-500.0,0.00033424,14]
[332692351,1721452286838,-1557.77,0.00033424,14]
[332692352,1721452286850,-1136.23,0.00033424,14]
[332692353,1721452286859,-500.0,0.00033424,14]
[332692354,1721452286868,-500.0,0.00033424,14]
[332692355,1721452286877,-1349.57,0.00033424,14]
[332692356,1721452286886,-523.79183308,0.00033424,14]
[332692357,1721452286896,-850.4,0.00033424,14]
[332692358,1721452286906,-500.0,0.00033424,14]
[332692359,1721452286915,-615.63,0.00033424,14]
[332692360,1721452286924,-500.0,0.00033424,14]
[332692361,1721452286933,-500.0,0.00033424,14]
[332692362,1721452286943,-585.37,0.00033424,14]
[332692363,1721452286952,-500.0,0.00033424,14]
[332692364,1721452286961,-1925.0,0.00033424,14]
[332692365,1721452286971,-500.0,0.00033424,14]
[332692366,1721452286980,-500.0,0.00033424,14]
[332692367,1721452286989,-507.05342701,0.00033424,14]
[332692368,1721452286999,-500.0,0.00033424,14]
[332692369,1721452287008,-500.0,0.00033424,14]
[332692370,1721452287017,-633.15,0.00033424,14]
[332692371,1721452287027,-500.0,0.00033424,14]
[332692372,1721452287036,-500.0,0.00033424,14]
[332692373,1721452287047,-500.0,0.00033424,14]
[332692374,1721452287056,-500.0,0.00033424,14]
[332692375,1721452287066,-1477.09,0.00033424,14]
[332692376,1721452287075,-500.0,0.00033424,14]
[332692377,1721452287085,-955.64,0.00033424,14]
[332692378,1721452287096,-703.79,0.00033424,14]
[332692379,1721452287105,-500.0,0.00033424,14]
[332692380,1721452287114,-500.0,0.00033424,14]
[332692381,1721452287124,-1257.46,0.00033424,14]
[332692382,1721452287133,-500.0,0.00033424,14]
[332692383,1721452287143,-500.0,0.00033424,14]
[332692384,1721452287152,-500.0,0.00033424,14]
[332692385,1721452287161,-500.0,0.00033424,14]
[332692386,1721452287171,-1259.58,0.00033424,14]
[332692387,1721452287181,-500.0,0.00033424,2]
[332692388,1721452287190,-1144.31,0.00033424,14]
[332692389,1721452287200,-808.34,0.00033424,14]
[332692390,1721452287210,-500.0,0.00033424,14]
[332692391,1721452287219,-1237.13,0.00033424,14]
[332692392,1721452287228,-500.0,0.00033424,14]
[332692393,1721452287238,-500.0,0.00033424,14]
[332692394,1721452287247,-500.0,0.00033424,14]
[332692395,1721452287257,-500.0,0.00033424,14]
[332692396,1721452287267,-500.0,0.00033424,14]
[332692397,1721452287276,-741.83,0.00033424,14]
[332692398,1721452287286,-500.0,0.00033424,14]
[332692399,1721452287296,-500.0,0.00033424,14]
[332692400,1721452287305,-688.35,0.00033424,14]
[332692401,1721452287315,-500.0,0.00033424,14]
[332692402,1721452287324,-809.96,0.00033424,14]
[332692403,1721452287334,-500.0,0.00033424,14]
[332692404,1721452287344,-1690.39,0.00033424,14]
[332692405,1721452287354,-500.0,0.00033424,14]
[332692406,1721452287363,-1144.57,0.00033424,14]
[332692407,1721452287374,-500.0,0.00033424,14]
[332692408,1721452287383,-500.0,0.00033424,14]
[332692409,1721452287393,-500.0,0.00033424,14]
[332692410,1721452287402,-500.0,0.00033424,14]
[332692411,1721452287412,-500.0,0.00033424,14]
[332692412,1721452287422,-1161.81,0.00033424,14]
[332692413,1721452287431,-500.0,0.00033424,14]
[332692414,1721452287440,-490.24292801,0.00033424,14]
[332692415,1721452287449,-853.53,0.00033424,14]
[332692416,1721452287459,-1958.12,0.00033424,14]
[332692417,1721452287468,-750.64,0.00033424,14]
[332692418,1721452287477,-500.0,0.00033424,14]
[332692419,1721452287487,-500.0,0.00033424,14]
[332692420,1721452287497,-2258.69,0.00033424,14]
[332692421,1721452287506,-509.87586524,0.00033424,14]
[332692422,1721452287515,-532.32019044,0.00033424,14]
[332692423,1721452287526,-500.0,0.00033424,14]
[332692424,1721452287535,-500.0,0.00033424,14]
[332692425,1721452287545,-500.0,0.00033424,14]
[332692426,1721452287554,-500.0,0.00033424,14]
[332692427,1721452287563,-500.0,0.00033424,14]
[332692428,1721452287573,-502.03150468,0.00033424,14]
[332692429,1721452287582,-511.45422426,0.00033424,14]
[332692430,1721452287595,-500.0,0.00033424,14]
[332692431,1721452287605,-500.0,0.00033424,14]
[332692432,1721452287615,-500.0,0.00033424,14]
[332692433,1721452287624,-500.0,0.00033424,14]
[332692434,1721452287634,-569.38,0.00033424,14]
[332692435,1721452287644,-1031.87,0.00033424,14]
[332692436,1721452287653,-500.0,0.00033424,14]
[332692437,1721452287663,-500.0,0.00033424,14]
[332692438,1721452287675,-500.0,0.00033424,14]
[332692439,1721452287686,-521.78571024,0.00033424,14]
[332692440,1721452287695,-500.0,0.00033424,14]
[332692441,1721452287706,-835.76,0.00033424,14]
[332692442,1721452287715,-1061.35,0.00033424,14]
[332692443,1721452287723,-500.0,0.00033424,14]
[332692444,1721452287733,-500.0,0.00033424,14]
[332692445,1721452287742,-519.00743206,0.00033424,14]
[332692446,1721452287752,-500.0,0.00033424,14]
[332692447,1721452287761,-500.0,0.00033424,14]
[332692448,1721452287771,-1119.4,0.00033424,14]
[332692449,1721452287781,-1376.73,0.00033424,14]
[332692450,1721452287790,-500.0,0.00033424,14]
[332692451,1721452287800,-500.0,0.00033424,14]
[332692452,1721452287810,-500.0,0.00033424,14]
[332692453,1721452287819,-500.0,0.00033424,14]
[332692454,1721452287829,-634.42,0.00033424,14]
[332692455,1721452287838,-500.0,0.00033424,14]
[332692456,1721452287849,-500.0,0.00033424,14]
[332692457,1721452287859,-1203.665083,0.00033424,7]
[332692458,1721452287868,-1203.665083,0.00033424,7]
[332692459,1721452287878,-500.0,0.00033424,14]
[332692460,1721452287887,-937.2,0.00033424,14]
[332692461,1721452287896,-500.0,0.00033424,14]
[332692462,1721452287906,-500.0,0.00033424,14]
[332692463,1721452287915,-506.28420636,0.00033424,14]
[332692464,1721452287924,-500.0,0.00033424,14]
[332692465,1721452287933,-151.0,0.00033424,7]
[332692466,1721452287943,-1180.46,0.00033424,14]
[332692467,1721452287952,-151.0,0.00033424,7]
[332692468,1721452287961,-1095.19,0.00033424,14]
[332692469,1721452287971,-1203.665083,0.00033424,7]
[332692470,1721452287980,-500.0,0.00033424,14]
[332692471,1721452287990,-1203.665083,0.00033424,7]
[332692472,1721452287999,-504.55749844,0.00033424,14]
[332692473,1721452288009,-518.74169925,0.00033424,14]
[332692474,1721452288019,-151.0,0.00033424,7]
[332692475,1721452288028,-151.0,0.00033424,7]
[332692476,1721452288038,-582.69817739,0.00033424,14]
[332692477,1721452288047,-945.13,0.00033424,14]
[332692478,1721452288056,-1149.74,0.00033424,14]
[332692479,1721452288065,-500.0,0.00033424,14]
[332692480,1721452288075,-500.0,0.00033424,14]
[332692481,1721452288084,-500.0,0.00033424,14]
[332692482,1721452288095,-170.986568,0.00033424,7]
[332692483,1721452288104,-170.986568,0.00033424,7]
[332692484,1721452288113,-632.42741417,0.00033424,14]
[332692485,1721452288125,-457.09339124,0.00033424,14]
[332692486,1721452288134,-1429.72,0.00033424,14]
[332692487,1721452288143,-1610.4,0.00033424,14]
[332692488,1721452288155,-514.45,0.00033424,14]
[332692489,1721452288164,-500.0,0.00033424,14]
[332692490,1721452288172,-170.986568,0.00033424,7]
[332692491,1721452288182,-170.986568,0.00033424,7]
[332692492,1721452288191,-500.0,0.00033424,14]
[332692493,1721452288200,-392.66027212,0.00033424,14]
[332692494,1721452288209,-504.64556596,0.00033424,14]
[332692495,1721452288219,-500.0,0.00033424,14]
[332692496,1721452288228,-500.0,0.00033424,14]
[332692497,1721452288237,-500.0,0.00033424,14]
[332692498,1721452288246,-500.0,0.00033424,14]
[332692499,1721452288256,-1148.04,0.00033424,14]
[332692500,1721452288264,-500.0,0.00033424,14]
[332692501,1721452288273,-500.0,0.00033424,14]
[332692502,1721452288283,-1507.35,0.00033424,14]
[332692503,1721452288292,-1028.57,0.00033424,14]
[332692504,1721452288301,-500.0,0.00033424,14]
[332692505,1721452288311,-500.0,0.00033424,14]
[332692506,1721452288320,-500.0,0.00033424,14]
[332692507,1721452288329,-726.07,0.00033424,14]
[332692508,1721452288338,-500.0,0.00033424,14]
[332692509,1721452288348,-500.0,0.00033424,14]
[332692510,1721452288357,-504.44965842,0.00033424,14]
[332692511,1721452288367,-840.79,0.00033424,14]
[332692512,1721452288376,-337.72976473,0.00033424,14]
[332692513,1721452288385,-500.0,0.00033424,14]
[332692514,1721452288394,-587.96433832,0.00033424,14]
[332692515,1721452288404,-500.0,0.00033424,14]
[332692516,1721452288413,-500.0,0.00033424,14]
[332692517,1721452288423,-509.63548897,0.00033424,14]
[332692518,1721452288432,-500.0,0.00033424,14]
[332692519,1721452288442,-505.47749334,0.00033424,14]
[332692520,1721452288452,-500.0,0.00033424,14]
[332692521,1721452288462,-2112.88,0.00033424,14]
[332692522,1721452288471,-525.94214859,0.00033424,14]
[332692523,1721452288480,-500.0,0.00033424,14]
[332692524,1721452288490,-500.0,0.00033424,14]
[332692525,1721452288499,-500.0,0.00033424,14]
[332692526,1721452288508,-151.0,0.00033424,7]
[332692527,1721452288517,-586.21032853,0.00033424,14]
[332692528,1721452288526,-515.34636746,0.00033424,14]
[332692529,1721452288536,-500.0,0.00033424,14]
[332692530,1721452288545,-505.24072215,0.00033424,14]
[332692531,1721452288555,-500.0,0.00033424,14]
[332692532,1721452288564,-500.0,0.00033424,14]
[332692533,1721452288573,-511.89473512,0.00033424,14]
[332692534,1721452288582,-500.0,0.00033424,14]
[332692535,1721452288592,-503.73072739,0.00033424,14]
[332692536,1721452288604,-500.0,0.00033424,14]
[332692537,1721452288614,-500.0,0.00033424,14]
[332692538,1721452288623,-500.0,0.00033424,14]
[332692539,1721452288632,-500.0,0.00033424,14]
[332692540,1721452288642,-151.0,0.00033424,7]
[332692541,1721452288651,-819.09,0.00033424,14]
[332692542,1721452288660,-867.8,0.00033424,14]
[332692543,1721452288670,-500.0,0.00033424,14]
[332692544,1721452288680,-507.5773152,0.00033424,14]
[332692545,1721452288689,-1383.64,0.00033424,14]
[332692546,1721452288698,-1320.46,0.00033424,14]
[332692547,1721452288707,-1502.0,0.00033424,14]
[332692548,1721452288716,-514.63206976,0.00033424,14]
[332692549,1721452288726,-173.655926,0.00033424,7]
[332692550,1721452288735,-500.0,0.00033424,14]
[332692551,1721452288744,-500.0,0.00033424,14]
[332692552,1721452288753,-500.0,0.00033424,14]
[332692553,1721452288762,-500.0,0.00033424,14]
[332692554,1721452288772,-151.0,0.00033424,7]
[332692555,1721452288781,-1828.69542036,0.00033424,2]
[332692556,1721452288791,-500.0,0.00033424,14]
[332692557,1721452288802,-500.0,0.00033424,14]
[332692558,1721452288810,-500.0,0.00033424,14]
[332692559,1721452288819,-500.0,0.00033424,14]
[332692560,1721452288827,-500.0,0.00033424,14]
[332692561,1721452288836,-151.0,0.00033424,7]
[332692562,1721452288845,-1255.44,0.00033424,14]
[332692563,1721452288854,-500.0,0.00033424,14]
[332692564,1721452288863,-500.0,0.00033424,14]
[332692565,1721452288873,-1033.38,0.00033424,14]
[332692566,1721452288882,-500.0,0.00033424,14]
[332692567,1721452288892,-504.92692019,0.00033424,14]
[332692568,1721452288901,-500.0,0.00033424,14]
[332692569,1721452288910,-500.0,0.00033424,14]
[332692570,1721452288920,-500.0,0.00033424,14]
[332692571,1721452288930,-500.0,0.00033424,14]
[332692572,1721452288939,-505.55294603,0.00033424,14]
[332692573,1721452288948,-529.47,0.00033424,14]
[332692574,1721452288957,-500.0,0.00033424,14]
[332692575,1721452288967,-508.72385716,0.00033424,14]
[332692576,1721452288976,-500.0,0.00033424,14]
[332692577,1721452288985,-500.0,0.00033424,14]
[332692578,1721452288994,-505.93757278,0.00033424,14]
[332692579,1721452289003,-500.0,0.00033424,14]
[332692580,1721452289012,-500.0,0.00033424,14]